[Event "ESP-ch Rapid 2018"]
[Site "Linares"]
[Date "2018.08.19"]
[Round "1"]
[White "Salgado Lopez, Ivan"]
[Black "Sanjuan Garcia, Miguel"]
[Result "1-0"]
[ECO "B80"]
[WhiteElo "2643"]
[BlackElo "2115"]
[Annotator "RC"]
[PlyCount "84"]
[EventDate "2018.08.19"]
[EventType "team-tourn"]
[EventCountry "ESP"]
[SourceTitle "playchess.com"]
[Source "ChessBase"]
[SourceQuality "1"]
[TimeControl "900+5"]

1. e4 c5 2. Nf3 {[%emt 0:00:04]} e6 {[%emt 0:00:00]} 3. d4 {[%emt 0:00:05]} cxd4 {[%emt 0:00:00]} 4. Nxd4 {[%emt 0:00:03]} Nf6 {[%emt 0:00:00]} 5. Nc3 {[%emt 0:00:04]} d6 {[%emt 0:00:00]} 6. g3 {[%emt 0:00:07]} Nc6 {[%emt 0:00:07]} 7. Bg2 {[%emt 0:00:04]} Bd7 {[%emt 0:00:02]} 8. Nb3 {[%emt 0:00:14]} Be7 {[%emt 0:00:13]} 9. O-O {[%emt 0:00:05]} a6 {[%emt 0:00:19]} 10. a4 {[%emt 0:00:16]} Rb8 {[%emt 0:01:36]} 11. a5 {[%emt 0:00:11]} O-O {[%emt 0:00:05]} 12. Be3 {[%emt 0:00:13]} Ne5 {[%emt 0:01:16]} 13. Nd2 {[%emt 0:01:13]} Bc6 {[%emt 0:00:26]} 14. f4 {[%emt 0:00:34]} Ned7 {[%emt 0:00:28]} 15. Nb3 {[%emt 0:00:16]} e5 {[%emt 0:02:13]} 16. f5 {[%emt 0:00:45]} Nc5 {[%emt 0:03:05]} 17. Nxc5 {[%emt 0:00:50]} dxc5 {[%emt 0:00:01]} 18. Qe2 {[%emt 0:00:03]} b5 {[%emt 0:00:18]} 19. axb6 {[%emt 0:00:33]} Qxb6 {[%emt 0:00:00]} 20. Ra2 {[%emt 0:02:47]} Bb5 {[%emt 0:03:23]} 21. Nxb5 {[%emt 0:00:04]} Qxb5 {[%emt 0:00:07]} 22. Qxb5 {[%emt 0:01:12]} axb5 {[%emt 0:00:02]} 23. Bf3 {[%emt 0:00:23]} Rfc8 {[%emt 0:00:53]} 24. Ra7 {[%emt 0:00:11]} Bf8 {[%emt 0:00:20]} 25. g4 {[%emt 0:00:32]} h6 {[%emt 0:00:20]} 26. h4 {[%emt 0:00:03]} c4 {[%emt 0:00:36]} 27. g5 {[%emt 0:00:15]} hxg5 {[%emt 0:00:01]} 28. hxg5 {[%emt 0:00:03]} Ne8 {[%emt 0:00:03]} 29. Rd1 {[%emt 0:01:03]} Rd8 {[%emt 0:00:23]} 30. Rxd8 {[%emt 0:01:10]} Rxd8 {[%emt 0:00:01]} 31. Kg2 {[%emt 0:00:02]} Rc8 {[%emt 0:00:28]} 32. Bh5 {[%emt 0:00:15]} Rc7 {[%emt 0:00:09]} 33. Ra8 {[%emt 0:00:34]} Nd6 {[%emt 0:00:02]} 34. Kf3 {[%emt 0:00:04]} Rc8 {[%emt 0:00:15]} 35. Ra5 {[%emt 0:00:12]} f6 {[%emt 0:00:23]} 36. gxf6 {[%emt 0:00:09]} gxf6 {[%emt 0:00:01]} 37. Ra7 {[%emt 0:00:03]} b4 {[%emt 0:00:18]} 38. Rd7 {[%emt 0:00:09]} b3 {[%emt 0:00:09]} 39. c3 {[%emt 0:00:14]} Nb5 {[%emt 0:00:01]} 40. Bf7+ {[%emt 0:00:14]} Kh8 {[%emt 0:00:01]} 41. Be6 {[%emt 0:00:28]} Ba3 {[%emt 0:00:12]} 42. Rd1 {[%emt 0:00:08]} Rc7 1-0

[Event "ESP-ch Rapid 2018"]
[Site "Linares"]
[Date "2018.08.19"]
[Round "1"]
[White "Fernandez Garcia, Jose Miguel"]
[Black "Izquierdo Puertas, Carlos"]
[Result "1-0"]
[ECO "B20"]
[WhiteElo "2404"]
[BlackElo "2010"]
[Annotator "ChessBase"]
[PlyCount "95"]
[EventDate "2018.08.19"]
[EventType "team-tourn"]
[EventCountry "ESP"]
[SourceTitle "playchess.com"]
[Source "ChessBase"]
[SourceQuality "1"]
[TimeControl "900+5"]

1. e4 {[%emt 0:00:00]} c5 {[%emt 0:01:17]} 2. b3 {[%emt 0:00:09]} Nc6 {[%emt 0:00:22]} 3. Bb2 {[%emt 0:00:01]} d6 {[%emt 0:00:04]} 4. Bb5 {[%emt 0:00:36]} Qb6 {[%emt 0:00:09]} 5. Nc3 {[%emt 0:00:12]} e6 {[%emt 0:00:32]} 6. f4 {[%emt 0:00:48]} a6 {[%emt 0:00:09]} 7. Bxc6+ {[%emt 0:00:01]} Qxc6 {[%emt 0:00:01]} 8. Qe2 {[%emt 0:00:17]} b5 {[%emt 0:00:13]} 9. Nf3 {[%emt 0:00:25]} Bb7 {[%emt 0:00:06]} 10. d3 {[%emt 0:01:15]} Nf6 {[%emt 0:00:55]} 11. O-O {[%emt 0:01:56]} b4 {[%emt 0:01:52]} 12. Nd1 {[%emt 0:00:14]} Nd7 {[%emt 0:00:45]} 13. Ne3 {[%emt 0:00:20]} f6 {[%emt 0:00:44]} 14. f5 {[%emt 0:02:17]} e5 {[%emt 0:00:58]} 15. a3 {[%emt 0:00:01]} Nb6 {[%emt 0:00:22]} 16. Nd2 {[%emt 0:00:28]} d5 {[%emt 0:00:16]} 17. Qh5+ {[%emt 0:00:35]} Kd8 {[%emt 0:00:26]} 18. Rfc1 {[%emt 0:01:13]} Rc8 {[%emt 0:00:28]} 19. a4 {[%emt 0:00:53]} d4 {[%emt 0:00:59]} 20. Nec4 {[%emt 0:00:17]} Nd7 {[%emt 0:00:17]} 21. Rf1 {[%emt 0:01:51]} Kc7 {[%emt 0:00:25]} 22. Na5 {[%emt 0:00:38]} Qd6 {[%emt 0:00:07]} 23. Ndc4 {[%emt 0:00:03]} Qe7 {[%emt 0:00:08]} 24. Nxb7 {[%emt 0:00:02]} Kxb7 {[%emt 0:00:05]} 25. a5 {[%emt 0:00:07]} Qe8 {[%emt 0:00:41]} 26. Qf3 {[%emt 0:00:22]} g5 {[%emt 0:00:27]} 27. fxg6 {[%emt 0:00:17]} Qxg6 {[%emt 0:00:18]} 28. Bc1 {[%emt 0:00:21]} Be7 {[%emt 0:00:28]} 29. Qh3 {[%emt 0:00:09]} Rc7 {[%emt 0:01:17]} 30. Rf3 {[%emt 0:00:04]} Qf7 {[%emt 0:00:57]} 31. Bd2 {[%emt 0:00:01]} Rg8 {[%emt 0:00:01]} 32. Raf1 {[%emt 0:00:01]} Ka7 {[%emt 0:00:27]} 33. Rf5 {[%emt 0:00:00]} Rg6 {[%emt 0:00:08]} 34. Nxe5 {[%emt 0:00:17]} Nxe5 {[%emt 0:00:10]} 35. Rxe5 {[%emt 0:00:01]} Qg7 {[%emt 0:00:11]} 36. Rh5 {[%emt 0:00:15]} Bd6 {[%emt 0:00:06]} 37. Bf4 {[%emt 0:00:07]} Bxf4 {[%emt 0:00:24]} 38. Rxf4 {[%emt 0:00:01]} Rb7 {[%emt 0:00:19]} 39. Rxc5 {[%emt 0:00:24]} Qe7 {[%emt 0:00:11]} 40. Rff5 {[%emt 0:00:43]} Qd7 {[%emt 0:00:24]} 41. Qf3 {[%emt 0:00:02]} Qg7 {[%emt 0:00:06]} 42. Qf2 {[%emt 0:00:03]} Rd7 {[%emt 0:00:01]} 43. Rfd5 {[%emt 0:00:01]} h6 {[%emt 0:00:09]} 44. g3 {[%emt 0:00:07]} Rg5 {[%emt 0:00:03]} 45. Rxd7+ {[%emt 0:00:38]} Qxd7 {[%emt 0:00:10]} 46. Rc4 {[%emt 0:00:01]} Rxa5 47. Rxd4 {[%emt 0:00:00]} Qc7 {[%emt 0:00:08]} 48. Rd7+ {[%emt 0:00:03]} 1-0

[Event "ESP-ch Rapid 2018"]
[Site "Linares"]
[Date "2018.08.19"]
[Round "1"]
[White "Camacho Collados, Marcos"]
[Black "Fernandez Diaz, Ignacio"]
[Result "1-0"]
[ECO "A80"]
[WhiteElo "2393"]
[BlackElo "2071"]
[Annotator "NA"]
[PlyCount "55"]
[EventDate "2018.08.19"]
[EventType "team-tourn"]
[EventCountry "ESP"]
[SourceTitle "playchess.com"]
[Source "ChessBase"]
[SourceQuality "1"]
[TimeControl "900+5"]

1. d4 {[%emt 0:01:04]} f5 {[%emt 0:00:00]} 2. Nc3 {[%emt 0:00:04]} Nf6 {[%emt 0:00:00]} 3. Bg5 {[%emt 0:00:02]} d5 {[%emt 0:00:00]} 4. Bxf6 {[%emt 0:00:02]} exf6 {[%emt 0:00:00]} 5. e3 {[%emt 0:00:02]} Be6 {[%emt 0:00:01]} 6. Bd3 {[%emt 0:00:02]} Qd7 {[%emt 0:00:28]} 7. Nge2 {[%emt 0:00:03]} Nc6 {[%emt 0:01:00]} 8. a3 {[%emt 0:00:06]} g5 {[%emt 0:01:20]} 9. h4 {[%emt 0:00:07]} Be7 {[%emt 0:00:43]} 10. Qd2 {[%emt 0:00:05]} O-O-O {[%emt 0:00:46]} 11. O-O-O {[%emt 0:00:05]} Kb8 {[%emt 0:00:07]} 12. Kb1 {[%emt 0:00:02]} a6 {[%emt 0:00:03]} 13. Nc1 {[%emt 0:00:53]} Bd6 {[%emt 0:02:36]} 14. g3 {[%emt 0:01:15]} Ne7 {[%emt 0:00:13]} 15. Nb3 {[%emt 0:00:09]} Ng6 {[%emt 0:01:01]} 16. h5 {[%emt 0:02:32]} Ne7 {[%emt 0:00:02]} 17. Na2 {[%emt 0:00:06]} f4 {[%emt 0:00:36]} 18. exf4 {[%emt 0:00:08]} gxf4 {[%emt 0:00:08]} 19. gxf4 {[%emt 0:00:02]} Nf5 {[%emt 0:00:16]} 20. Qa5 {[%emt 0:02:05]} c6 {[%emt 0:02:21]} 21. Rde1 {[%emt 0:01:09]} Rde8 {[%emt 0:00:21]} 22. Nb4 {[%emt 0:00:03]} Qc7 {[%emt 0:00:16]} 23. Qxc7+ {[%emt 0:00:08]} Kxc7 {[%emt 0:00:30]} 24. Rxe6 {[%emt 0:00:04]} Rxe6 {[%emt 0:00:08]} 25. Bxf5 {[%emt 0:00:02]} Re2 {[%emt 0:00:12]} 26. Nd3 h6 {[%emt 0:00:29]} 27. Rg1 {[%emt 0:00:10]} Rhe8 {[%emt 0:00:05]} 28. Rg6 {[%emt 0:00:06]} 1-0

[Event "ESP-ch Rapid 2018"]
[Site "Linares"]
[Date "2018.08.19"]
[Round "1"]
[White "Suarez Uriel, Adrian"]
[Black "Guerrero Romero, Antonio"]
[Result "1-0"]
[ECO "B12"]
[WhiteElo "2391"]
[BlackElo "1895"]
[Annotator "NA"]
[PlyCount "99"]
[EventDate "2018.08.19"]
[EventType "team-tourn"]
[EventCountry "ESP"]
[SourceTitle "playchess.com"]
[Source "ChessBase"]
[SourceQuality "1"]
[TimeControl "900+5"]

1. e4 {[%emt 0:00:00]} c6 {[%emt 0:00:02]} 2. d4 {[%emt 0:00:00]} d5 {[%emt 0:00:01]} 3. e5 {[%emt 0:00:01]} Bf5 {[%emt 0:00:02]} 4. Be3 {[%emt 0:00:03]} e6 {[%emt 0:00:22]} 5. Nd2 {[%emt 0:00:03]} Nd7 {[%emt 0:00:19]} 6. c3 {[%emt 0:00:01]} c5 {[%emt 0:00:03]} 7. Ngf3 {[%emt 0:00:04]} Rc8 {[%emt 0:00:09]} 8. Be2 {[%emt 0:00:33]} Ne7 {[%emt 0:00:28]} 9. O-O {[%emt 0:00:20]} Nc6 {[%emt 0:00:02]} 10. a3 {[%emt 0:00:19]} Be7 {[%emt 0:00:08]} 11. b4 {[%emt 0:00:02]} cxb4 {[%emt 0:00:27]} 12. axb4 {[%emt 0:00:02]} b6 {[%emt 0:00:08]} 13. Nb3 {[%emt 0:00:31]} Qc7 {[%emt 0:00:31]} 14. Ba6 {[%emt 0:01:15]} Ra8 {[%emt 0:00:19]} 15. Qe2 {[%emt 0:00:03]} O-O {[%emt 0:00:12]} 16. Rfc1 {[%emt 0:00:01]} Ndb8 {[%emt 0:00:41]} 17. Bb5 {[%emt 0:00:06]} a6 {[%emt 0:00:03]} 18. Bxa6 {[%emt 0:00:13]} Nxa6 {[%emt 0:00:03]} 19. Rxa6 {[%emt 0:00:02]} Rxa6 {[%emt 0:00:02]} 20. Qxa6 {[%emt 0:00:01]} h6 {[%emt 0:00:05]} 21. h3 {[%emt 0:00:28]} Rb8 {[%emt 0:00:33]} 22. Ra1 {[%emt 0:00:12]} Rb7 {[%emt 0:00:07]} 23. Qb5 {[%emt 0:00:29]} Bc2 {[%emt 0:00:32]} 24. Nc1 {[%emt 0:00:23]} Be4 {[%emt 0:00:24]} 25. Nd2 {[%emt 0:00:21]} Bf5 {[%emt 0:00:01]} 26. Ndb3 {[%emt 0:01:04]} Kh7 {[%emt 0:00:02]} 27. Qe2 {[%emt 0:01:50]} f6 {[%emt 0:00:14]} 28. f4 {[%emt 0:00:09]} fxe5 {[%emt 0:00:18]} 29. fxe5 {[%emt 0:00:01]} Nd8 {[%emt 0:00:34]} 30. Bd2 {[%emt 0:00:15]} Nf7 {[%emt 0:00:02]} 31. Nd3 {[%emt 0:00:19]} Ng5 {[%emt 0:00:07]} 32. Nf2 {[%emt 0:00:20]} Qc6 {[%emt 0:01:04]} 33. Nc1 {[%emt 0:00:21]} Rc7 {[%emt 0:00:01]} 34. Ncd3 {[%emt 0:00:06]} Qc4 {[%emt 0:00:29]} 35. Nf4 {[%emt 0:00:01]} Qxe2 {[%emt 0:00:08]} 36. Nxe2 {[%emt 0:00:01]} Ne4 {[%emt 0:00:01]} 37. Nxe4 {[%emt 0:00:02]} Bxe4 {[%emt 0:00:02]} 38. Ra8 {[%emt 0:00:12]} Bh4 {[%emt 0:01:14]} 39. g3 {[%emt 0:01:27]} Bg5 {[%emt 0:00:10]} 40. Bxg5 {[%emt 0:00:32]} hxg5 {[%emt 0:00:01]} 41. Kf2 {[%emt 0:00:23]} Rf7+ {[%emt 0:00:31]} 42. Ke1 {[%emt 0:00:01]} Bg2 {[%emt 0:00:16]} 43. h4 {[%emt 0:00:05]} Rf1+ {[%emt 0:00:49]} 44. Kd2 {[%emt 0:00:02]} gxh4 {[%emt 0:00:21]} 45. gxh4 {[%emt 0:00:02]} Bh3 {[%emt 0:00:24]} 46. Rb8 {[%emt 0:01:30]} Rf2 {[%emt 0:00:04]} 47. Ke3 {[%emt 0:00:07]} Rh2 {[%emt 0:00:02]} 48. Rxb6 {[%emt 0:00:14]} Bg4 {[%emt 0:00:02]} 49. Nf4 {[%emt 0:00:12]} Rxh4 {[%emt 0:00:06]} 50. Nxe6 {[%emt 0:00:06]} 1-0

[Event "ESP-ch Rapid 2018"]
[Site "Linares"]
[Date "2018.08.19"]
[Round "1"]
[White "Vega Gutierrez, Sabrina"]
[Black "Diaz Sanchez, Jose Francisco"]
[Result "1-0"]
[ECO "C50"]
[WhiteElo "2390"]
[BlackElo "1707"]
[Annotator "NA"]
[PlyCount "75"]
[EventDate "2018.08.19"]
[EventType "team-tourn"]
[EventCountry "ESP"]
[SourceTitle "playchess.com"]
[Source "ChessBase"]
[SourceQuality "1"]
[TimeControl "900+5"]

1. e4 {[%emt 0:00:00]} e5 {[%emt 0:00:00]} 2. Nf3 {[%emt 0:00:00]} Nc6 {[%emt 0:00:00]} 3. Bc4 {[%emt 0:00:02]} Bc5 {[%emt 0:00:11]} 4. d3 {[%emt 0:00:03]} Nf6 {[%emt 0:00:47]} 5. c3 {[%emt 0:00:03]} d6 {[%emt 0:00:10]} 6. b4 {[%emt 0:00:18]} Bb6 {[%emt 0:00:01]} 7. a4 {[%emt 0:00:03]} a5 {[%emt 0:00:49]} 8. b5 {[%emt 0:00:09]} Ne7 {[%emt 0:00:01]} 9. O-O {[%emt 0:00:05]} h6 {[%emt 0:00:18]} 10. Na3 {[%emt 0:00:22]} O-O {[%emt 0:00:13]} 11. Bb3 {[%emt 0:00:04]} Bg4 {[%emt 0:01:46]} 12. h3 {[%emt 0:00:09]} Bh5 {[%emt 0:00:01]} 13. Nc4 {[%emt 0:00:06]} c5 {[%emt 0:01:45]} 14. g4 {[%emt 0:04:07]} Bg6 {[%emt 0:00:06]} 15. Nh4 {[%emt 0:00:01]} Bc7 {[%emt 0:00:36]} 16. Ne3 {[%emt 0:01:08]} b6 {[%emt 0:00:40]} 17. Qf3 {[%emt 0:00:15]} Nh7 {[%emt 0:03:18]} 18. Qg3 {[%emt 0:02:06]} d5 {[%emt 0:02:21]} 19. Nxd5 {[%emt 0:00:14]} Nxd5 {[%emt 0:00:06]} 20. Bxd5 {[%emt 0:00:03]} Kh8 {[%emt 0:00:35]} 21. Bxa8 {[%emt 0:00:30]} Qxa8 {[%emt 0:00:01]} 22. f4 {[%emt 0:00:15]} exf4 {[%emt 0:00:05]} 23. Bxf4 {[%emt 0:00:03]} Bxf4 {[%emt 0:00:08]} 24. Rxf4 {[%emt 0:00:08]} Ng5 {[%emt 0:00:33]} 25. Nxg6+ {[%emt 0:00:21]} fxg6 {[%emt 0:00:01]} 26. Rxf8+ {[%emt 0:00:09]} Qxf8 {[%emt 0:00:02]} 27. Rf1 {[%emt 0:00:02]} Qe7 {[%emt 0:00:29]} 28. Kh2 {[%emt 0:00:50]} Kh7 {[%emt 0:00:50]} 29. Qb8 {[%emt 0:00:35]} Qe6 {[%emt 0:00:44]} 30. Rf8 {[%emt 0:00:55]} Qa2+ {[%emt 0:00:05]} 31. Kg3 {[%emt 0:00:02]} Nf7 {[%emt 0:00:37]} 32. Qe8 {[%emt 0:00:19]} Qd2 {[%emt 0:00:09]} 33. Qxf7 {[%emt 0:00:20]} Qe3+ {[%emt 0:00:05]} 34. Kg2 {[%emt 0:00:11]} Qd2+ {[%emt 0:00:09]} 35. Qf2 {[%emt 0:00:04]} Qxd3 {[%emt 0:00:07]} 36. Qe1 {[%emt 0:00:21]} Qc2+ {[%emt 0:00:04]} 37. Kg1 {[%emt 0:00:18]} Qxa4 {[%emt 0:00:04]} 38. e5 {[%emt 0:00:03]} 1-0

[Event "ESP-ch Rapid 2018"]
[Site "Linares"]
[Date "2018.08.19"]
[Round "1"]
[White "Campos Gambuti, Luis Maria"]
[Black "Orantes Taboada, Francisco"]
[Result "1/2-1/2"]
[ECO "D01"]
[WhiteElo "2382"]
[BlackElo "2242"]
[Annotator "ChessBase"]
[PlyCount "136"]
[EventDate "2018.08.19"]
[EventType "team-tourn"]
[EventCountry "ESP"]
[SourceTitle "playchess.com"]
[Source "ChessBase"]
[SourceQuality "1"]
[TimeControl "900+5"]

1. d4 {[%emt 0:00:00]} Nf6 {[%emt 0:00:00]} 2. Nc3 {[%emt 0:00:00]} d5 {[%emt 0:00:00]} 3. Bg5 {[%emt 0:00:00]} g6 {[%emt 0:00:14]} 4. Bxf6 {[%emt 0:00:16]} exf6 {[%emt 0:00:02]} 5. e3 {[%emt 0:00:02]} Bg7 {[%emt 0:00:05]} 6. Qf3 {[%emt 0:00:02]} Be6 {[%emt 0:00:07]} 7. Nge2 {[%emt 0:00:35]} c6 {[%emt 0:00:02]} 8. Nf4 {[%emt 0:00:03]} Bd7 {[%emt 0:00:24]} 9. g4 {[%emt 0:00:32]} Qb6 {[%emt 0:00:15]} 10. O-O-O {[%emt 0:00:03]} Na6 {[%emt 0:00:11]} 11. e4 {[%emt 0:00:11]} O-O-O {[%emt 0:03:24]} 12. exd5 {[%emt 0:00:05]} Nb4 {[%emt 0:00:07]} 13. Bc4 {[%emt 0:02:28]} f5 {[%emt 0:01:55]} 14. dxc6 {[%emt 0:00:29]} Bxc6 {[%emt 0:00:03]} 15. d5 {[%emt 0:00:02]} Bd7 {[%emt 0:00:02]} 16. h3 {[%emt 0:00:15]} fxg4 {[%emt 0:00:29]} 17. hxg4 {[%emt 0:00:01]} f5 {[%emt 0:00:01]} 18. g5 {[%emt 0:00:07]} Kb8 {[%emt 0:00:29]} 19. a3 {[%emt 0:00:28]} Na6 {[%emt 0:00:01]} 20. Bxa6 {[%emt 0:01:19]} Qxa6 {[%emt 0:00:02]} 21. Rhe1 {[%emt 0:00:13]} Rc8 {[%emt 0:00:30]} 22. Re3 {[%emt 0:00:06]} Rhe8 {[%emt 0:00:31]} 23. Rxe8 {[%emt 0:03:38]} Rxe8 {[%emt 0:01:13]} 24. Ne6 {[%emt 0:00:39]} Bxe6 {[%emt 0:00:16]} 25. Qf4+ {[%emt 0:00:01]} Kc8 {[%emt 0:01:26]} 26. dxe6 {[%emt 0:00:05]} Bxc3 {[%emt 0:00:03]} 27. bxc3 {[%emt 0:00:45]} Rxe6 {[%emt 0:03:17]} 28. Qb4 {[%emt 0:00:06]} Qc6 {[%emt 0:00:24]} 29. Qd4 {[%emt 0:00:26]} Re8 {[%emt 0:00:13]} 30. Qxa7 {[%emt 0:00:07]} Qb5 {[%emt 0:01:17]} 31. c4 {[%emt 0:00:07]} Qe5 {[%emt 0:00:10]} 32. Kb1 {[%emt 0:00:12]} Kc7 {[%emt 0:00:09]} 33. Rd5 {[%emt 0:00:07]} Qc3 {[%emt 0:00:10]} 34. Rc5+ {[%emt 0:00:11]} Kd8 {[%emt 0:00:01]} 35. Qb6+ {[%emt 0:00:07]} Ke7 {[%emt 0:00:01]} 36. Rc7+ {[%emt 0:00:01]} Kf8 {[%emt 0:00:01]} 37. Qd6+ {[%emt 0:00:06]} Kg8 {[%emt 0:00:01]} 38. Re7 {[%emt 0:00:22]} Rxe7 {[%emt 0:00:03]} 39. Qxe7 {[%emt 0:00:02]} Qxc4 {[%emt 0:00:03]} 40. Qxb7 {[%emt 0:00:17]} Qf1+ {[%emt 0:00:01]} 41. Kb2 Qxf2 {[%emt 0:00:03]} 42. Qd5+ {[%emt 0:00:13]} Kg7 {[%emt 0:00:04]} 43. a4 {[%emt 0:00:02]} Qb6+ {[%emt 0:00:03]} 44. Qb5 {[%emt 0:00:07]} Qd4+ {[%emt 0:00:01]} 45. Kb3 {[%emt 0:00:10]} Qe3+ {[%emt 0:00:11]} 46. c3 {[%emt 0:00:01]} Qxg5 {[%emt 0:00:12]} 47. a5 {[%emt 0:00:02]} Qc1 {[%emt 0:00:01]} 48. Qd7+ {[%emt 0:00:10]} Kh6 {[%emt 0:00:03]} 49. Qd4 {[%emt 0:00:16]} f4 {[%emt 0:00:13]} 50. a6 {[%emt 0:00:08]} Qb1+ {[%emt 0:00:11]} 51. Ka4 {[%emt 0:00:01]} Qa2+ {[%emt 0:00:04]} 52. Kb5 {[%emt 0:00:02]} Qb3+ {[%emt 0:00:04]} 53. Ka5 {[%emt 0:00:18]} Qa2+ {[%emt 0:00:05]} 54. Kb6 {[%emt 0:00:10]} Qb3+ {[%emt 0:00:05]} 55. Kc6 {[%emt 0:00:41]} Qe6+ {[%emt 0:00:05]} 56. Kb7 {[%emt 0:00:01]} Qb3+ {[%emt 0:00:08]} 57. Ka8 {[%emt 0:00:07]} Qg8+ {[%emt 0:00:02]} 58. Ka7 {[%emt 0:00:02]} Qf7+ {[%emt 0:00:01]} 59. Kb6 {[%emt 0:00:01]} Qb3+ {[%emt 0:00:02]} 60. Kc5 {[%emt 0:00:27]} Qa3+ {[%emt 0:00:09]} 61. Kb5 {[%emt 0:00:01]} Qb3+ {[%emt 0:00:02]} 62. Kc5 {[%emt 0:00:27]} Qa3+ {[%emt 0:00:03]} 63. Kb6 {[%emt 0:00:15]} Qb3+ {[%emt 0:00:01]} 64. Kc7 {[%emt 0:00:20]} Qf7+ {[%emt 0:00:01]} 65. Kc6 {[%emt 0:00:22]} Qe6+ {[%emt 0:00:06]} 66. Kb5 {[%emt 0:00:06]} Qb3+ {[%emt 0:00:02]} 67. Kc5 {[%emt 0:00:12]} Qa3+ {[%emt 0:00:02]} 68. Kb6 {[%emt 0:00:02]} Qb3+ {[%emt 0:00:01]} 1/2-1/2

[Event "ESP-ch Rapid 2018"]
[Site "Linares"]
[Date "2018.08.19"]
[Round "1"]
[White "Galiana Fernandez, Adrian"]
[Black "Blazquez Gomez, Juan Carlos"]
[Result "1/2-1/2"]
[ECO "B01"]
[WhiteElo "2291"]
[BlackElo "2240"]
[Annotator "ChessBase"]
[PlyCount "128"]
[EventDate "2018.08.19"]
[EventType "team-tourn"]
[EventCountry "ESP"]
[SourceTitle "playchess.com"]
[Source "ChessBase"]
[SourceQuality "1"]
[TimeControl "900+5"]

1. e4 {[%emt 0:00:02]} d5 {[%emt 0:00:00]} 2. exd5 {[%emt 0:00:02]} Nf6 {[%emt 0:00:00]} 3. Bb5+ {[%emt 0:00:09]} Bd7 {[%emt 0:00:05]} 4. Bc4 {[%emt 0:00:02]} b5 {[%emt 0:00:13]} 5. Bb3 {[%emt 0:00:02]} a5 {[%emt 0:00:02]} 6. a4 {[%emt 0:00:09]} bxa4 {[%emt 0:00:06]} 7. Bxa4 {[%emt 0:00:02]} Bxa4 {[%emt 0:00:01]} 8. Rxa4 {[%emt 0:00:01]} Nxd5 {[%emt 0:00:02]} 9. Nf3 {[%emt 0:00:19]} e6 {[%emt 0:00:47]} 10. O-O {[%emt 0:00:06]} Be7 {[%emt 0:00:35]} 11. d4 {[%emt 0:00:17]} O-O {[%emt 0:00:56]} 12. Bd2 {[%emt 0:00:02]} Nc6 {[%emt 0:00:58]} 13. Rc4 {[%emt 0:01:13]} Qd7 {[%emt 0:01:42]} 14. Ne5 {[%emt 0:00:02]} Nxe5 {[%emt 0:00:19]} 15. dxe5 {[%emt 0:00:01]} Rfd8 {[%emt 0:02:41]} 16. Qh5 {[%emt 0:01:11]} f5 {[%emt 0:03:11]} 17. exf6 {[%emt 0:00:49]} Bxf6 {[%emt 0:00:03]} 18. Bg5 {[%emt 0:00:23]} Qf7 {[%emt 0:02:47]} 19. Qxf7+ {[%emt 0:01:09]} Kxf7 {[%emt 0:00:02]} 20. Bxf6 {[%emt 0:00:02]} Kxf6 {[%emt 0:00:01]} 21. Nc3 {[%emt 0:00:10]} Rab8 {[%emt 0:00:44]} 22. b3 {[%emt 0:00:04]} Rb4 {[%emt 0:00:48]} 23. Nxd5+ {[%emt 0:00:03]} Rxd5 {[%emt 0:00:01]} 24. Rxc7 {[%emt 0:00:04]} Rd2 {[%emt 0:00:01]} 25. Ra1 {[%emt 0:00:13]} a4 {[%emt 0:00:04]} 26. bxa4 {[%emt 0:00:45]} Rxa4 {[%emt 0:00:01]} 27. Rc1 {[%emt 0:00:01]} Re4 {[%emt 0:00:06]} 28. Rc3 {[%emt 0:00:53]} Ree2 {[%emt 0:00:22]} 29. Rf3+ {[%emt 0:00:53]} Ke7 {[%emt 0:00:01]} 30. c3 {[%emt 0:00:48]} Rc2 {[%emt 0:00:02]} 31. Rb1 {[%emt 0:00:37]} Rb2 {[%emt 0:00:01]} 32. Rf1 {[%emt 0:00:02]} e5 {[%emt 0:00:01]} 33. h4 {[%emt 0:00:49]} e4 {[%emt 0:00:06]} 34. Re3 {[%emt 0:00:01]} Rxe3 {[%emt 0:00:07]} 35. fxe3 {[%emt 0:00:01]} Re2 {[%emt 0:00:02]} 36. Rc1 {[%emt 0:00:31]} Kd6 {[%emt 0:00:20]} 37. c4 {[%emt 0:00:08]} Rxe3 {[%emt 0:00:01]} 38. Kf2 {[%emt 0:00:09]} Ra3 {[%emt 0:00:12]} 39. g4 {[%emt 0:02:00]} Rh3 {[%emt 0:00:16]} 40. h5 {[%emt 0:00:02]} g6 {[%emt 0:00:05]} 41. hxg6 hxg6 {[%emt 0:00:01]} 42. c5+ {[%emt 0:01:38]} Kc6 {[%emt 0:00:01]} 43. Rc4 {[%emt 0:00:01]} e3+ {[%emt 0:00:04]} 44. Ke2 {[%emt 0:00:46]} Rg3 {[%emt 0:00:05]} 45. Kd3 {[%emt 0:00:14]} g5 {[%emt 0:00:06]} 46. Ke2 {[%emt 0:00:05]} Rh3 {[%emt 0:00:11]} 47. Kd3 {[%emt 0:01:08]} Kd5 {[%emt 0:00:07]} 48. Rc1 {[%emt 0:00:05]} Kc6 {[%emt 0:00:01]} 49. Ke4 {[%emt 0:00:10]} e2 {[%emt 0:00:03]} 50. Re1 {[%emt 0:00:05]} Rh2 {[%emt 0:00:01]} 51. Kf5 {[%emt 0:00:03]} Kxc5 {[%emt 0:00:02]} 52. Kxg5 {[%emt 0:00:02]} Kd4 {[%emt 0:00:00]} 53. Kf6 {[%emt 0:00:05]} Rf2+ {[%emt 0:00:01]} 54. Kg6 {[%emt 0:00:12]} Ke3 {[%emt 0:00:01]} 55. g5 {[%emt 0:00:01]} Rf1 {[%emt 0:00:01]} 56. Rxe2+ {[%emt 0:00:02]} Kxe2 {[%emt 0:00:01]} 57. Kh7 {[%emt 0:00:04]} Rh1+ {[%emt 0:00:01]} 58. Kg7 {[%emt 0:00:02]} Ke3 {[%emt 0:00:00]} 59. g6 {[%emt 0:00:01]} Ke4 {[%emt 0:00:13]} 60. Kf6 {[%emt 0:00:13]} Rh6 {[%emt 0:00:08]} 61. Kf7 {[%emt 0:00:11]} Kf5 {[%emt 0:00:16]} 62. g7 {[%emt 0:00:01]} Rf6+ {[%emt 0:00:02]} 63. Ke7 {[%emt 0:00:13]} Rg6 {[%emt 0:00:03]} 64. Kf7 {[%emt 0:00:02]} Rxg7+ 1/2-1/2